[Event "December 19 Early 2023"]
[Site "https://www.chess.com"]
[Date "2023.12.19"]
[Round "2"]
[White "Parpiev, Isaak"]
[Black "Szpar, Milosz"]
[Result "1-0"]
[Board "47"]
[TimeControl "180+1"]
[WhiteFideId "34281576"]
[BlackFideId "1184989"]
[WhiteElo "2183"]
[BlackElo "2446"]
[WhiteTeam "RUS"]
[BlackTeam "POL"]
[WhiteClock "0:00:09"]
[BlackClock "0:00:02"]

1. e4 {[%clk 0:02:57]}  e6 {[%clk 0:03:00]} 2. d3 {[%clk 0:02:56]}  d5 {[%clk 0:02:59]} 3. Nd2 {[%clk 0:02:56]}  Nf6 {[%clk 0:02:59]} 4. Ngf3 {[%clk 0:02:56]}  Be7 {[%clk 0:02:59]} 5. g3 {[%clk 0:02:57]}  O-O {[%clk 0:02:59]} 6. Bg2 {[%clk 0:02:57]}  a5 {[%clk 0:02:59]} 7. O-O {[%clk 0:02:56]}  a4 {[%clk 0:02:59]} 8. a3 {[%clk 0:02:54]}  Nc6 {[%clk 0:02:58]} 9. e5 {[%clk 0:02:52]}  Nd7 {[%clk 0:02:52]} 10. d4 {[%clk 0:02:53]}  Na5 {[%clk 0:02:19]} 11. c3 {[%clk 0:02:52]}  c5 {[%clk 0:02:18]} 12. Qxa4 {[%clk 0:02:48]}  b5 {[%clk 0:02:09]} 13. Qd1 {[%clk 0:02:40]}  Nc6 {[%clk 0:02:02]} 14. Re1 {[%clk 0:02:34]}  Bb7 {[%clk 0:01:58]} 15. Nf1 {[%clk 0:02:33]}  b4 {[%clk 0:01:57]} 16. h4 {[%clk 0:02:26]}  bxc3 {[%clk 0:01:43]} 17. bxc3 {[%clk 0:02:26]}  Qa5 {[%clk 0:01:39]} 18. Bd2 {[%clk 0:02:24]}  Qa4 {[%clk 0:01:39]} 19. Qb1 {[%clk 0:01:58]}  Ba6 {[%clk 0:01:28]} 20. Be3 {[%clk 0:01:58]}  Rab8 {[%clk 0:01:21]} 21. Qc1 {[%clk 0:01:56]}  Rfc8 {[%clk 0:01:21]} 22. Qd2 {[%clk 0:01:40]}  Na5 {[%clk 0:01:19]} 23. Reb1 {[%clk 0:01:25]}  Rxb1 {[%clk 0:00:50]} 24. Rxb1 {[%clk 0:01:24]}  Qxa3 {[%clk 0:00:46]} 25. Bg5 {[%clk 0:01:09]}  Bf8 {[%clk 0:00:46]} 26. h5 {[%clk 0:01:09]}  h6 {[%clk 0:00:46]} 27. Bf4 {[%clk 0:01:08]}  Nc4 {[%clk 0:00:33]} 28. Qe1 {[%clk 0:01:08]}  Ndb6 {[%clk 0:00:20]} 29. Ra1 {[%clk 0:01:05]}  Qb2 {[%clk 0:00:09]} 30. Rxa6 {[%clk 0:01:05]}  cxd4 {[%clk 0:00:09]} 31. cxd4 {[%clk 0:01:03]}  Bb4 {[%clk 0:00:09]} 32. Qd1 {[%clk 0:01:02]}  Bc3 {[%clk 0:00:09]} 33. g4 {[%clk 0:00:55]}  Qb5 {[%clk 0:00:09]} 34. Ra7 {[%clk 0:00:50]}  Nb2 {[%clk 0:00:09]} 35. Qb1 {[%clk 0:00:49]}  Qe2 {[%clk 0:00:07]} 36. Ng3 {[%clk 0:00:45]}  Qc4 {[%clk 0:00:05]} 37. Bf1 {[%clk 0:00:43]}  Qb4 {[%clk 0:00:05]} 38. g5 {[%clk 0:00:42]}  Qf8 {[%clk 0:00:03]} 39. gxh6 {[%clk 0:00:40]}  gxh6 {[%clk 0:00:04]} 40. Bh3 {[%clk 0:00:28]}  Re8 {[%clk 0:00:03]} 41. Kh2 {[%clk 0:00:27]}  N6c4 {[%clk 0:00:03]} 42. Ne2 {[%clk 0:00:26]}  Bb4 {[%clk 0:00:02]} 43. Qg1+ {[%clk 0:00:22]}  Kh8 {[%clk 0:00:03]} 44. Qg4 {[%clk 0:00:20]}  Nd3 {[%clk 0:00:03]} 45. Bg3 {[%clk 0:00:19]}  Be7 {[%clk 0:00:03]} 46. Nh4 {[%clk 0:00:19]}  Qg8 {[%clk 0:00:02]} 47. Qf3 {[%clk 0:00:19]}  Qg7 {[%clk 0:00:02]} 48. Qxd3 {[%clk 0:00:17]}  Nb2 {[%clk 0:00:02]} 49. Qf3 {[%clk 0:00:17]}  Nc4 {[%clk 0:00:02]} 50. Rd7 {[%clk 0:00:17]}  Nd2 {[%clk 0:00:02]} 51. Qe3 {[%clk 0:00:17]}  Ne4 {[%clk 0:00:03]} 52. Ng2 {[%clk 0:00:16]}  Bg5 {[%clk 0:00:03]} 53. Qf3 {[%clk 0:00:16]}  Rf8 {[%clk 0:00:03]} 54. Bh4 {[%clk 0:00:16]}  Nd2 {[%clk 0:00:02]} 55. Qg4 {[%clk 0:00:15]}  Nf1+ {[%clk 0:00:03]} 56. Kg1 {[%clk 0:00:15]}  f5 {[%clk 0:00:03]} 57. exf6 {[%clk 0:00:15]}  Qxd7 {[%clk 0:00:03]} 58. Bxg5 {[%clk 0:00:15]}  Rg8 {[%clk 0:00:04]} 59. Kxf1 {[%clk 0:00:10]}  Rxg5 {[%clk 0:00:04]} 60. Qxe6 {[%clk 0:00:11]}  Qb7 {[%clk 0:00:03]} 61. Qe8+ {[%clk 0:00:11]}  Kh7 {[%clk 0:00:03]} 62. Bf5+ {[%clk 0:00:10]}  Rxf5 {[%clk 0:00:03]} 63. Qg6+ {[%clk 0:00:10]}  Kh8 {[%clk 0:00:04]} 64. Qxf5 {[%clk 0:00:08]}  Qa7 {[%clk 0:00:04]} 65. Qc8+ {[%clk 0:00:08]}  Kh7 {[%clk 0:00:04]} 66. Qf5+ {[%clk 0:00:09]}  Kg8 {[%clk 0:00:04]} 67. Qg6+ {[%clk 0:00:09]}  Kf8 {[%clk 0:00:02]} 68. Qg7+ {[%clk 0:00:09]} 1-0

[Event "December 19 Early 2023"]
[Site "https://www.chess.com"]
[Date "2023.12.19"]
[Round "2"]
[White "Livaic, Leon"]
[Black "Toman, Ondrej"]
[Result "1-0"]
[Board "51"]
[TimeControl "180+1"]
[WhiteFideId "14531534"]
[BlackFideId "344516"]
[WhiteElo "2541"]
[BlackElo "2157"]
[WhiteTeam "CRO"]
[BlackTeam "CZE"]
[WhiteClock "0:00:05"]
[BlackClock "0:00:09"]

1. d4 {[%clk 0:03:00]}  Nf6 {[%clk 0:02:59]} 2. c4 {[%clk 0:03:01]}  e6 {[%clk 0:03:00]} 3. Nf3 {[%clk 0:03:01]}  d5 {[%clk 0:03:00]} 4. Nc3 {[%clk 0:03:01]}  c5 {[%clk 0:03:00]} 5. Bg5 {[%clk 0:03:01]}  Be7 {[%clk 0:02:55]} 6. cxd5 {[%clk 0:03:01]}  cxd4 {[%clk 0:02:55]} 7. Qxd4 {[%clk 0:02:56]}  exd5 {[%clk 0:02:51]} 8. e3 {[%clk 0:02:56]}  Nc6 {[%clk 0:02:47]} 9. Qa4 {[%clk 0:02:53]}  O-O {[%clk 0:02:44]} 10. Be2 {[%clk 0:02:52]}  h6 {[%clk 0:02:39]} 11. Bh4 {[%clk 0:02:50]}  Be6 {[%clk 0:02:37]} 12. O-O {[%clk 0:02:46]}  Nd7 {[%clk 0:02:25]} 13. Bxe7 {[%clk 0:02:41]}  Qxe7 {[%clk 0:02:25]} 14. Rfd1 {[%clk 0:02:39]}  Rfd8 {[%clk 0:02:24]} 15. Nxd5 {[%clk 0:02:30]}  Bxd5 {[%clk 0:02:17]} 16. Rxd5 {[%clk 0:02:31]}  Nb6 {[%clk 0:02:04]} 17. Rxd8+ {[%clk 0:02:30]}  Rxd8 {[%clk 0:02:05]} 18. Qb3 {[%clk 0:02:27]}  Qb4 {[%clk 0:01:41]} 19. Qxb4 {[%clk 0:02:15]}  Nxb4 {[%clk 0:01:41]} 20. a3 {[%clk 0:02:15]}  Nc6 {[%clk 0:01:42]} 21. Rc1 {[%clk 0:02:05]}  Kf8 {[%clk 0:01:37]} 22. Bb5 {[%clk 0:02:03]}  Na5 {[%clk 0:01:22]} 23. Kf1 {[%clk 0:01:37]}  a6 {[%clk 0:01:19]} 24. Be2 {[%clk 0:01:36]}  Na4 {[%clk 0:00:59]} 25. b4 {[%clk 0:01:31]}  Nb3 {[%clk 0:00:57]} 26. Rc7 {[%clk 0:01:07]}  Nd2+ {[%clk 0:00:42]} 27. Ke1 {[%clk 0:00:55]}  Nb1 {[%clk 0:00:22]} 28. Ne5 {[%clk 0:00:48]}  Nxa3 {[%clk 0:00:18]} 29. Rxf7+ {[%clk 0:00:42]}  Kg8 {[%clk 0:00:18]} 30. Rxb7 {[%clk 0:00:40]}  Nc3 {[%clk 0:00:15]} 31. Rd7 {[%clk 0:00:12]}  Rb8 {[%clk 0:00:13]} 32. Bxa6 {[%clk 0:00:10]}  Rxb4 {[%clk 0:00:12]} 33. Bd3 {[%clk 0:00:06]}  g5 {[%clk 0:00:11]} 34. Kd2 {[%clk 0:00:06]}  Na4 {[%clk 0:00:09]} 35. Bh7+ {[%clk 0:00:04]}  Kf8 {[%clk 0:00:09]} 36. Bd3 {[%clk 0:00:03]}  Rb1 {[%clk 0:00:08]} 37. Bxb1 {[%clk 0:00:03]}  Nxb1+ {[%clk 0:00:08]} 38. Ke2 {[%clk 0:00:04]}  Nbc3+ {[%clk 0:00:08]} 39. Kd3 {[%clk 0:00:04]}  Nc5+ {[%clk 0:00:08]} 40. Kxc3 {[%clk 0:00:04]}  Nxd7 {[%clk 0:00:09]} 41. Nxd7+ {[%clk 0:00:04]}  Ke7 {[%clk 0:00:09]} 42. Nc5 {[%clk 0:00:05]} 1-0

[Event "December 19 Early 2023"]
[Site "https://www.chess.com"]
[Date "2023.12.19"]
[Round "2"]
[White "Nanu, Costica-Ciprian"]
[Black "Popov, Konstantin"]
[Result "0-1"]
[Board "52"]
[TimeControl "180+1"]
[WhiteFideId "1204580"]
[BlackFideId "34137910"]
[WhiteElo "2485"]
[BlackElo "2340"]
[WhiteTeam "ROU"]
[BlackTeam "FID"]
[WhiteClock "0:01:15"]
[BlackClock "0:02:05"]

1. Nf3 {[%clk 0:03:00]}  d5 {[%clk 0:02:59]} 2. c4 {[%clk 0:03:00]}  c6 {[%clk 0:02:59]} 3. e3 {[%clk 0:03:00]}  Nf6 {[%clk 0:02:59]} 4. Nc3 {[%clk 0:03:00]}  g6 {[%clk 0:02:59]} 5. d4 {[%clk 0:03:00]}  Bg7 {[%clk 0:03:00]} 6. Be2 {[%clk 0:03:01]}  O-O {[%clk 0:03:00]} 7. O-O {[%clk 0:03:01]}  a6 {[%clk 0:03:00]} 8. b3 {[%clk 0:03:00]}  Bg4 {[%clk 0:03:00]} 9. Bb2 {[%clk 0:02:58]}  e6 {[%clk 0:02:59]} 10. Ne5 {[%clk 0:02:56]}  Bxe2 {[%clk 0:02:59]} 11. Qxe2 {[%clk 0:02:57]}  Nbd7 {[%clk 0:03:00]} 12. Nxd7 {[%clk 0:02:53]}  Qxd7 {[%clk 0:02:59]} 13. Na4 {[%clk 0:02:52]}  Rad8 {[%clk 0:02:56]} 14. Nc5 {[%clk 0:02:51]}  Qc8 {[%clk 0:02:56]} 15. Rac1 {[%clk 0:02:50]}  Rfe8 {[%clk 0:02:56]} 16. Rfd1 {[%clk 0:02:49]}  Nd7 {[%clk 0:02:55]} 17. cxd5 {[%clk 0:02:48]}  exd5 {[%clk 0:02:55]} 18. b4 {[%clk 0:02:37]}  Nb6 {[%clk 0:02:53]} 19. Qf3 {[%clk 0:02:28]}  Nc4 {[%clk 0:02:52]} 20. Bc3 {[%clk 0:02:29]}  b6 {[%clk 0:02:45]} 21. Nb3 {[%clk 0:02:27]}  Qe6 {[%clk 0:02:41]} 22. a4 {[%clk 0:02:26]}  Bf8 {[%clk 0:02:37]} 23. Nd2 {[%clk 0:02:25]}  b5 {[%clk 0:02:36]} 24. a5 {[%clk 0:02:19]}  h5 {[%clk 0:02:28]} 25. Nf1 {[%clk 0:02:16]}  Qg4 {[%clk 0:02:26]} 26. Qxg4 {[%clk 0:02:12]}  hxg4 {[%clk 0:02:27]} 27. Ng3 {[%clk 0:02:12]}  f5 {[%clk 0:02:25]} 28. Ne2 {[%clk 0:02:11]}  Bd6 {[%clk 0:02:26]} 29. Kf1 {[%clk 0:02:08]}  Kf7 {[%clk 0:02:24]} 30. Ng3 {[%clk 0:01:55]}  Rh8 {[%clk 0:02:20]} 31. Kg1 {[%clk 0:01:53]}  Rh7 {[%clk 0:02:19]} 32. Nf1 {[%clk 0:01:39]}  Bxh2+ {[%clk 0:02:15]} 33. Nxh2 {[%clk 0:01:36]}  Rdh8 {[%clk 0:02:16]} 34. f3 {[%clk 0:01:29]}  Rxh2 {[%clk 0:02:08]} 35. fxg4 {[%clk 0:01:22]}  Nxe3 {[%clk 0:02:07]} 36. Rd3 {[%clk 0:01:15]}  Rxg2# {[%clk 0:02:05]} 0-1

[Event "December 19 Early 2023"]
[Site "https://www.chess.com"]
[Date "2023.12.19"]
[Round "2"]
[White "Ismagilov, Damir"]
[Black "Maksimovic, Bojan"]
[Result "0-1"]
[Board "53"]
[TimeControl "180+1"]
[WhiteFideId "34199982"]
[BlackFideId "14408120"]
[WhiteElo "2131"]
[BlackElo "2527"]
[WhiteTeam "RUS"]
[BlackTeam "BIH"]
[WhiteClock "0:00:00"]
[BlackClock "0:00:18"]

1. d4 {[%clk 0:03:00]}  g6 {[%clk 0:02:58]} 2. c4 {[%clk 0:03:00]}  Bg7 {[%clk 0:02:56]} 3. e4 {[%clk 0:03:01]}  d6 {[%clk 0:02:56]} 4. Nc3 {[%clk 0:03:01]}  e5 {[%clk 0:02:56]} 5. d5 {[%clk 0:02:50]}  a5 {[%clk 0:02:53]} 6. Be2 {[%clk 0:02:41]}  Na6 {[%clk 0:02:46]} 7. Nf3 {[%clk 0:02:41]}  Nf6 {[%clk 0:02:43]} 8. O-O {[%clk 0:02:40]}  Nc5 {[%clk 0:02:42]} 9. Qc2 {[%clk 0:02:37]}  O-O {[%clk 0:02:42]} 10. b3 {[%clk 0:02:20]}  Nh5 {[%clk 0:02:23]} 11. g3 {[%clk 0:02:20]}  f5 {[%clk 0:02:20]} 12. Bg5 {[%clk 0:02:00]}  Bf6 {[%clk 0:02:19]} 13. Bh6 {[%clk 0:01:59]}  Bg7 {[%clk 0:02:15]} 14. Bg5 {[%clk 0:01:58]}  Qe8 {[%clk 0:01:38]} 15. Nh4 {[%clk 0:01:56]}  Nf6 {[%clk 0:01:11]} 16. exf5 {[%clk 0:01:48]}  gxf5 {[%clk 0:01:10]} 17. Be3 {[%clk 0:01:33]}  b6 {[%clk 0:00:34]} 18. Rae1 {[%clk 0:01:32]}  Nce4 {[%clk 0:00:29]} 19. Nxe4 {[%clk 0:01:21]}  fxe4 {[%clk 0:00:30]} 20. f4 {[%clk 0:01:02]}  Bh3 {[%clk 0:00:29]} 21. Rf2 {[%clk 0:01:02]}  Ng4 {[%clk 0:00:27]} 22. Bxg4 {[%clk 0:01:00]}  Bxg4 {[%clk 0:00:27]} 23. f5 {[%clk 0:00:48]}  Bf6 {[%clk 0:00:18]} 24. Qxe4 {[%clk 0:00:46]}  Bh3 {[%clk 0:00:18]} 25. Nf3 {[%clk 0:00:35]}  Kh8 {[%clk 0:00:17]} 26. Kh1 {[%clk 0:00:22]}  Qh5 {[%clk 0:00:16]} 27. Nd2 {[%clk 0:00:14]}  Rg8 {[%clk 0:00:16]} 28. Rg1 {[%clk 0:00:13]}  Raf8 {[%clk 0:00:14]} 29. a3 {[%clk 0:00:12]}  Bg4 {[%clk 0:00:13]} 30. b4 {[%clk 0:00:07]}  axb4 {[%clk 0:00:13]} 31. axb4 {[%clk 0:00:08]}  Be7 {[%clk 0:00:14]} 32. Rgf1 {[%clk 0:00:06]}  Rf6 {[%clk 0:00:14]} 33. Qc2 {[%clk 0:00:03]}  Rgf8 {[%clk 0:00:15]} 34. Ne4 {[%clk 0:00:04]}  Rxf5 {[%clk 0:00:16]} 35. Rxf5 {[%clk 0:00:04]}  Rxf5 {[%clk 0:00:17]} 36. Rxf5 {[%clk 0:00:04]}  Qxf5 {[%clk 0:00:17]} 37. Kg1 {[%clk 0:00:03]}  Bf3 {[%clk 0:00:18]} 38. Qf2 {[%clk 0:00:00]}  Bxe4 {[%clk 0:00:18]} 0-1

[Event "December 19 Early 2023"]
[Site "https://www.chess.com"]
[Date "2023.12.19"]
[Round "2"]
[White "Pichot, Alan"]
[Black "Stepanencu, Nicodim-Cosmin"]
[Result "0-1"]
[Board "54"]
[TimeControl "180+1"]
[WhiteFideId "110973"]
[BlackFideId "1256220"]
[WhiteElo "2592"]
[BlackElo "2154"]
[WhiteTeam "ESP"]
[BlackTeam "ROU"]
[WhiteClock "0:00:05"]
[BlackClock "0:00:06"]

1. e4 {[%clk 0:03:00]}  e6 {[%clk 0:02:55]} 2. d4 {[%clk 0:02:59]}  d5 {[%clk 0:02:56]} 3. Nd2 {[%clk 0:02:59]}  c5 {[%clk 0:02:56]} 4. Ngf3 {[%clk 0:02:58]}  Nc6 {[%clk 0:02:54]} 5. exd5 {[%clk 0:02:57]}  exd5 {[%clk 0:02:55]} 6. Bb5 {[%clk 0:02:57]}  Qe7+ {[%clk 0:02:55]} 7. Be2 {[%clk 0:02:55]}  cxd4 {[%clk 0:02:49]} 8. O-O {[%clk 0:02:54]}  Qc7 {[%clk 0:02:50]} 9. Nb3 {[%clk 0:02:54]}  Bd6 {[%clk 0:02:50]} 10. h3 {[%clk 0:02:43]}  Nge7 {[%clk 0:02:44]} 11. Nbxd4 {[%clk 0:02:42]}  a6 {[%clk 0:02:45]} 12. c3 {[%clk 0:02:41]}  O-O {[%clk 0:02:44]} 13. Bd3 {[%clk 0:02:35]}  Ng6 {[%clk 0:02:38]} 14. Re1 {[%clk 0:02:31]}  Bd7 {[%clk 0:02:34]} 15. Be3 {[%clk 0:02:28]}  Rae8 {[%clk 0:02:27]} 16. Nf5 {[%clk 0:02:21]}  Bf4 {[%clk 0:02:12]} 17. Bc5 {[%clk 0:02:19]}  Rxe1+ {[%clk 0:02:12]} 18. Qxe1 {[%clk 0:01:39]}  Re8 {[%clk 0:01:43]} 19. Qd1 {[%clk 0:01:38]}  Nce5 {[%clk 0:01:35]} 20. Bd4 {[%clk 0:01:28]}  Nxd3 {[%clk 0:01:10]} 21. Nxg7 {[%clk 0:01:15]}  Re4 {[%clk 0:00:19]} 22. Qxd3 {[%clk 0:01:13]}  Bb5 {[%clk 0:00:20]} 23. Qc2 {[%clk 0:00:50]}  Rxd4 {[%clk 0:00:20]} 24. Nxd4 {[%clk 0:00:43]}  Kxg7 {[%clk 0:00:20]} 25. Re1 {[%clk 0:00:42]}  Bh2+ {[%clk 0:00:16]} 26. Kh1 {[%clk 0:00:42]}  Be5 {[%clk 0:00:17]} 27. Nf5+ {[%clk 0:00:40]}  Kf8 {[%clk 0:00:15]} 28. Qd2 {[%clk 0:00:39]}  Bd7 {[%clk 0:00:11]} 29. Qh6+ {[%clk 0:00:36]}  Kg8 {[%clk 0:00:11]} 30. Qg5 {[%clk 0:00:31]}  f6 {[%clk 0:00:10]} 31. Qh5 {[%clk 0:00:26]}  Qc4 {[%clk 0:00:03]} 32. Ne3 {[%clk 0:00:16]}  Qf4 {[%clk 0:00:03]} 33. Kg1 {[%clk 0:00:12]}  Qh2+ {[%clk 0:00:03]} 34. Kf1 {[%clk 0:00:13]}  Qh1+ {[%clk 0:00:02]} 35. Ke2 {[%clk 0:00:13]}  Nf4+ {[%clk 0:00:03]} 36. Kd1 {[%clk 0:00:12]}  Qxe1+ {[%clk 0:00:03]} 37. Kxe1 {[%clk 0:00:13]}  Nxh5 {[%clk 0:00:04]} 38. Nxd5 {[%clk 0:00:14]}  Nf4 {[%clk 0:00:04]} 39. Ne3 {[%clk 0:00:14]}  Bc6 {[%clk 0:00:03]} 40. Kf1 {[%clk 0:00:13]}  Bc7 {[%clk 0:00:02]} 41. h4 {[%clk 0:00:12]}  Bb6 {[%clk 0:00:01]} 42. Nf5 {[%clk 0:00:11]}  Bxg2+ {[%clk 0:00:02]} 43. Ke1 {[%clk 0:00:11]}  Be4 {[%clk 0:00:02]} 44. Nd6 {[%clk 0:00:12]}  Bc6 {[%clk 0:00:02]} 45. Kd2 {[%clk 0:00:11]}  Bc7 {[%clk 0:00:02]} 46. Nf5 {[%clk 0:00:11]}  Be5 {[%clk 0:00:03]} 47. Ke3 {[%clk 0:00:11]}  Ne6 {[%clk 0:00:04]} 48. Kd3 {[%clk 0:00:09]}  Bf4 {[%clk 0:00:04]} 49. c4 {[%clk 0:00:09]}  Kf7 {[%clk 0:00:05]} 50. b4 {[%clk 0:00:09]}  Kg6 {[%clk 0:00:05]} 51. Ne7+ {[%clk 0:00:09]}  Kf7 {[%clk 0:00:05]} 52. Nf5 {[%clk 0:00:10]}  Bg2 {[%clk 0:00:04]} 53. a4 {[%clk 0:00:08]}  Be5 {[%clk 0:00:05]} 54. c5 {[%clk 0:00:07]}  Nf4+ {[%clk 0:00:05]} 55. Kc4 {[%clk 0:00:07]}  Bf1+ {[%clk 0:00:05]} 56. Kb3 {[%clk 0:00:07]}  Bd3 {[%clk 0:00:05]} 57. Ne3 {[%clk 0:00:07]}  Ke6 {[%clk 0:00:05]} 58. Ng4 {[%clk 0:00:05]}  h5 {[%clk 0:00:04]} 59. Ne3 {[%clk 0:00:06]}  Nd5 {[%clk 0:00:04]} 60. Nd1 {[%clk 0:00:06]}  Bd4 {[%clk 0:00:04]} 61. f3 {[%clk 0:00:04]}  Ke5 {[%clk 0:00:04]} 62. b5 {[%clk 0:00:04]}  axb5 {[%clk 0:00:04]} 63. a5 {[%clk 0:00:05]}  Bc4+ {[%clk 0:00:03]} 64. Ka3 {[%clk 0:00:05]}  Bxc5+ {[%clk 0:00:03]} 65. Kb2 {[%clk 0:00:05]}  Bd4+ {[%clk 0:00:04]} 66. Ka3 {[%clk 0:00:06]}  Nc3 {[%clk 0:00:03]} 67. Nb2 {[%clk 0:00:06]}  Nb1+ {[%clk 0:00:03]} 68. Kb4 {[%clk 0:00:05]}  Bc3+ {[%clk 0:00:04]} 69. Kc5 {[%clk 0:00:05]}  Bxb2 {[%clk 0:00:04]} 70. a6 {[%clk 0:00:06]}  Bd4+ {[%clk 0:00:05]} 71. Kb4 {[%clk 0:00:05]}  bxa6 {[%clk 0:00:06]} 0-1

[Event "December 19 Early 2023"]
[Site "https://www.chess.com"]
[Date "2023.12.19"]
[Round "2"]
[White "Klymchuk, Andriy"]
[Black "Koutlas, Nikolaos"]
[Result "1-0"]
[Board "56"]
[TimeControl "180+1"]
[WhiteFideId "14140063"]
[BlackFideId "25827138"]
[WhiteElo "2487"]
[BlackElo "2215"]
[WhiteTeam "UKR"]
[BlackTeam "GRE"]
[WhiteClock "0:00:20"]
[BlackClock "0:00:00"]

1. e4 {[%clk 0:03:00]}  e6 {[%clk 0:02:59]} 2. d4 {[%clk 0:03:00]}  d5 {[%clk 0:02:59]} 3. Nd2 {[%clk 0:03:00]}  c5 {[%clk 0:02:58]} 4. exd5 {[%clk 0:03:00]}  exd5 {[%clk 0:02:57]} 5. Ngf3 {[%clk 0:02:59]}  Nf6 {[%clk 0:02:58]} 6. Bb5+ {[%clk 0:02:59]}  Nc6 {[%clk 0:02:58]} 7. O-O {[%clk 0:02:59]}  Be7 {[%clk 0:02:58]} 8. dxc5 {[%clk 0:02:59]}  Bxc5 {[%clk 0:02:59]} 9. Nb3 {[%clk 0:02:59]}  Bb6 {[%clk 0:03:00]} 10. Re1+ {[%clk 0:02:58]}  Be6 {[%clk 0:03:00]} 11. Be3 {[%clk 0:02:58]}  O-O {[%clk 0:02:58]} 12. Bxb6 {[%clk 0:02:54]}  Qxb6 {[%clk 0:02:55]} 13. Be2 {[%clk 0:02:38]}  Rac8 {[%clk 0:02:51]} 14. Nfd4 {[%clk 0:02:36]}  Ne4 {[%clk 0:02:43]} 15. c3 {[%clk 0:02:28]}  Ne5 {[%clk 0:02:39]} 16. Qc2 {[%clk 0:02:22]}  Rfe8 {[%clk 0:02:33]} 17. Bb5 {[%clk 0:02:17]}  Re7 {[%clk 0:02:26]} 18. Rad1 {[%clk 0:02:17]}  Bg4 {[%clk 0:02:13]} 19. Be2 {[%clk 0:02:07]}  Qg6 {[%clk 0:01:56]} 20. Bxg4 {[%clk 0:02:01]}  Nxg4 {[%clk 0:01:50]} 21. f3 {[%clk 0:01:56]}  Ngf2 {[%clk 0:01:28]} 22. fxe4 {[%clk 0:01:33]}  Nxd1 {[%clk 0:01:26]} 23. Qxd1 {[%clk 0:01:33]}  dxe4 {[%clk 0:01:19]} 24. Qd2 {[%clk 0:01:31]}  Rd8 {[%clk 0:01:15]} 25. Qf4 {[%clk 0:01:30]}  h6 {[%clk 0:01:12]} 26. Nd2 {[%clk 0:01:28]}  f5 {[%clk 0:00:58]} 27. Nf1 {[%clk 0:01:19]}  Rf8 {[%clk 0:00:48]} 28. Ne3 {[%clk 0:01:18]}  Ref7 {[%clk 0:00:43]} 29. Rf1 {[%clk 0:01:17]}  Qb6 {[%clk 0:00:37]} 30. Rf2 {[%clk 0:01:08]}  g5 {[%clk 0:00:36]} 31. Qe5 {[%clk 0:01:07]}  f4 {[%clk 0:00:36]} 32. Nd5 {[%clk 0:01:00]}  Qg6 {[%clk 0:00:15]} 33. Ne7+ {[%clk 0:00:55]}  Rxe7 {[%clk 0:00:15]} 34. Qxe7 {[%clk 0:00:56]}  e3 {[%clk 0:00:15]} 35. Rf1 {[%clk 0:00:55]}  Re8 {[%clk 0:00:15]} 36. Qxb7 {[%clk 0:00:52]}  e2 {[%clk 0:00:11]} 37. Re1 {[%clk 0:00:52]}  Qd3 {[%clk 0:00:10]} 38. Qf3 {[%clk 0:00:42]}  Re3 {[%clk 0:00:09]} 39. Qf2 {[%clk 0:00:41]}  Qd2 {[%clk 0:00:08]} 40. h3 {[%clk 0:00:40]}  Qxb2 {[%clk 0:00:08]} 41. Rxe2 {[%clk 0:00:40]}  Qxc3 {[%clk 0:00:08]} 42. Nf3 {[%clk 0:00:33]}  Qa1+ {[%clk 0:00:07]} 43. Kh2 {[%clk 0:00:33]}  Qc3 {[%clk 0:00:06]} 44. Rc2 {[%clk 0:00:31]}  Qd3 {[%clk 0:00:05]} 45. Rc8+ {[%clk 0:00:28]}  Kh7 {[%clk 0:00:05]} 46. Qb2 {[%clk 0:00:28]}  Rxf3 {[%clk 0:00:03]} 47. gxf3 {[%clk 0:00:21]}  Qxf3 {[%clk 0:00:03]} 48. Qc2+ {[%clk 0:00:20]}  Kg7 {[%clk 0:00:04]} 49. Rc7+ {[%clk 0:00:20]}  Kf6 {[%clk 0:00:03]} 50. Qc3+ {[%clk 0:00:21]}  Kg6 {[%clk 0:00:00]} 51. Qxf3 {[%clk 0:00:20]} 1-0

[Event "December 19 Early 2023"]
[Site "https://www.chess.com"]
[Date "2023.12.19"]
[Round "2"]
[White "Klukin, Kirill"]
[Black "Tifferet, Shakked"]
[Result "1-0"]
[Board "58"]
[TimeControl "180+1"]
[WhiteFideId "24199273"]
[BlackFideId "2811529"]
[WhiteElo "2348"]
[BlackElo "2142"]
[WhiteTeam "RUS"]
[BlackTeam "ISR"]
[WhiteClock "0:00:25"]
[BlackClock "0:00:03"]

1. d4 {[%clk 0:03:00]}  d5 {[%clk 0:02:56]} 2. c4 {[%clk 0:03:01]}  c6 {[%clk 0:02:53]} 3. Nc3 {[%clk 0:03:01]}  Nf6 {[%clk 0:02:54]} 4. Nf3 {[%clk 0:03:00]}  a6 {[%clk 0:02:54]} 5. e3 {[%clk 0:02:57]}  Bg4 {[%clk 0:02:49]} 6. h3 {[%clk 0:02:47]}  Bxf3 {[%clk 0:02:48]} 7. Qxf3 {[%clk 0:02:47]}  g6 {[%clk 0:02:48]} 8. g3 {[%clk 0:02:37]}  Bg7 {[%clk 0:02:47]} 9. Bg2 {[%clk 0:02:37]}  O-O {[%clk 0:02:47]} 10. O-O {[%clk 0:02:38]}  dxc4 {[%clk 0:02:39]} 11. Qe2 {[%clk 0:02:32]}  b5 {[%clk 0:02:38]} 12. a4 {[%clk 0:02:32]}  b4 {[%clk 0:02:05]} 13. Ne4 {[%clk 0:02:08]}  Nxe4 {[%clk 0:01:49]} 14. Bxe4 {[%clk 0:02:09]}  Qd7 {[%clk 0:01:37]} 15. Qxc4 {[%clk 0:02:04]}  Qxh3 {[%clk 0:01:35]} 16. Qxb4 {[%clk 0:01:57]}  Nd7 {[%clk 0:01:35]} 17. Bxc6 {[%clk 0:01:46]}  Nf6 {[%clk 0:01:28]} 18. Bg2 {[%clk 0:01:37]}  Qh5 {[%clk 0:01:29]} 19. Qc5 {[%clk 0:01:26]}  Qxc5 {[%clk 0:01:07]} 20. dxc5 {[%clk 0:01:25]}  Rab8 {[%clk 0:01:07]} 21. Rb1 {[%clk 0:01:17]}  a5 {[%clk 0:00:52]} 22. Bd2 {[%clk 0:01:14]}  Rfc8 {[%clk 0:00:39]} 23. Rfc1 {[%clk 0:00:44]}  Nd7 {[%clk 0:00:23]} 24. c6 {[%clk 0:00:45]}  Ne5 {[%clk 0:00:23]} 25. c7 {[%clk 0:00:38]}  Rb3 {[%clk 0:00:20]} 26. Bxa5 {[%clk 0:00:38]}  Nd3 {[%clk 0:00:16]} 27. Rd1 {[%clk 0:00:35]}  Be5 {[%clk 0:00:15]} 28. Bf1 {[%clk 0:00:29]}  Bxc7 {[%clk 0:00:08]} 29. Bxc7 {[%clk 0:00:28]}  Nxb2 {[%clk 0:00:09]} 30. Rd8+ {[%clk 0:00:26]}  Rxd8 {[%clk 0:00:09]} 31. Bxd8 {[%clk 0:00:27]}  Nxa4 {[%clk 0:00:04]} 32. Rxb3 {[%clk 0:00:26]}  Nc5 {[%clk 0:00:04]} 33. Rb8 {[%clk 0:00:25]}  Nd7 {[%clk 0:00:03]} 34. Ra8 {[%clk 0:00:25]} 1-0